[Event "15e Open International de Quenza"]
[Site "Chess.com"]
[Date "2026.07.05"]
[Round "09"]
[White "Pierrat, John"]
[Black "Kjartansson, Gudmundur"]
[Result "0-1"]
[WhiteElo "1551"]
[BlackElo "2367"]
[TimeControl "300+3"]
[Link "https://www.chess.com/fr/events/15e-open-international-de-quenza/09/Pierrat_John-Kjartansson_Gudmundur"]

1. e4 {[%clk 0:05:03]} 1... c6 {[%clk 0:05:03]} 2. Nf3 {[%clk 0:05:03]} 2... d5
{[%clk 0:05:03]} 3. Nc3 {[%clk 0:05:03]} 3... Nf6 {[%clk 0:05:02]} 4. e5 {[%clk
0:04:50]} 4... Ne4 {[%clk 0:05:02]} 5. d4 {[%clk 0:04:47]} 5... c5 {[%clk
0:04:56]} 6. Be3 {[%clk 0:04:35]} 6... Nc6 {[%clk 0:04:47]} 7. Bb5 {[%clk
0:04:29]} 7... Bf5 {[%clk 0:04:22]} 8. Bxc6+ {[%clk 0:04:08]} 8... bxc6 {[%clk
0:04:22]} 9. O-O {[%clk 0:03:59]} 9... c4 {[%clk 0:04:07]} 10. Nh4 {[%clk
0:03:31]} 10... Nxc3 {[%clk 0:03:59]} 11. bxc3 {[%clk 0:03:31]} 11... Be4 {[%clk
0:03:46]} 12. f3 {[%clk 0:03:12]} 12... Bg6 {[%clk 0:03:46]} 13. Nxg6 {[%clk
0:03:12]} 13... hxg6 {[%clk 0:03:46]} 14. Bg5 {[%clk 0:02:53]} 14... Qc8 {[%clk
0:03:29]} 15. f4 {[%clk 0:02:23]} 15... f6 {[%clk 0:03:25]} 16. Bh4 {[%clk
0:02:14]} 16... Rxh4 {[%clk 0:03:25]} 17. Rf3 {[%clk 0:01:56]} 17... Rb8 {[%clk
0:03:05]} 18. Qe1 {[%clk 0:01:41]} 18... Rh8 {[%clk 0:02:57]} 19. Qg3 {[%clk
0:01:40]} 19... Qf5 {[%clk 0:02:57]} 20. Qf2 {[%clk 0:01:27]} 20... Rb2 {[%clk
0:02:55]} 21. exf6 {[%clk 0:00:56]} 21... gxf6 {[%clk 0:02:51]} 22. Rc1 {[%clk
0:00:25]} 22... Kf7 {[%clk 0:02:51]} 23. Rg3 {[%clk 0:00:13]} 23... e6 {[%clk
0:02:49]} 24. Qe2 {[%clk 0:00:04]} 24... Bd6 {[%clk 0:02:47]} 25. Rf3 {[%clk
0:00:04]} 0-1

[Event "15e Open International de Quenza"]
[Site "Quenza"]
[Date "2026.07.05"]
[Round "2.3"]
[White "BERNARDI, Alexandre"]
[Black "FRESSINET, Laurent"]
[Result "0-1"]
[TimeControl "5min+3s"]
[WhiteTitle "-"]
[BlackTitle "GM"]
[WhiteFideId "-"]
[BlackFideId "-"]
[WhiteElo "1948"]
[BlackElo "2565"]

1. e4 {[%clk 00:05:03]} {[%emt 00:00:02]} e5 {[%clk 00:05:03]} {[%emt
00:00:02]} 2. Nf3 {[%clk 00:05:03]} {[%emt 00:00:01]} Nc6 {[%clk 00:05:03]}
{[%emt 00:00:01]} 3. d4 {[%clk 00:05:03]} exd4 {[%clk 00:05:03]} {[%emt
00:00:02]} 4. Nxd4 {[%clk 00:05:03]} {[%emt 00:00:02]} Qf6 {[%clk 00:05:03]}
{[%emt 00:00:03]} 5. Be3 {[%clk 00:05:03]} {[%emt 00:00:02]} Bc5 {[%clk
00:05:03]} {[%emt 00:00:03]} 6. Nb5 {[%clk 00:05:03]} {[%emt 00:00:02]} Bxe3
{[%clk 00:04:59]} {[%emt 00:00:07]} 7. fxe3 {[%clk 00:05:03]} {[%emt 00:00:01]}
Qh4+ {[%clk 00:04:46]} {[%emt 00:00:15]} 8. g3 {[%clk 00:05:03]} Qd8 {[%clk
00:04:46]} {[%emt 00:00:01]} 9. Qg4 {[%clk 00:05:02]} {[%emt 00:00:04]} g5
{[%clk 00:04:46]} {[%emt 00:00:02]} 10. Qf3 {[%clk 00:03:59]} {[%emt 00:01:07]}
Ne5 {[%clk 00:04:33]} {[%emt 00:00:16]} 11. Qf2 {[%clk 00:03:48]} {[%emt
00:00:14]} a6 {[%clk 00:04:20]} {[%emt 00:00:17]} 12. Nd4 {[%clk 00:03:48]} d6
{[%clk 00:04:19]} {[%emt 00:00:04]} 13. Nc3 {[%clk 00:03:36]} {[%emt 00:00:14]}
Nf6 {[%clk 00:04:08]} {[%emt 00:00:14]} 14. Be2 {[%clk 00:03:30]} {[%emt
00:00:09]} Nfg4 {[%clk 00:03:45]} {[%emt 00:00:26]} 15. Qg1 {[%clk 00:03:10]}
{[%emt 00:00:23]} Be6 {[%clk 00:03:32]} {[%emt 00:00:16]} 16. h3 {[%clk
00:02:35]} {[%emt 00:00:38]} Nf6 {[%clk 00:03:32]} {[%emt 00:00:02]} 17. O-O-O
{[%clk 00:02:35]} {[%emt 00:00:03]} Qe7 {[%clk 00:03:32]} {[%emt 00:00:02]} 18.
Nf5 {[%clk 00:02:15]} {[%emt 00:00:24]} Bxf5 {[%clk 00:03:30]} {[%emt
00:00:04]} 19. exf5 {[%clk 00:02:15]} {[%emt 00:00:01]} O-O-O {[%clk 00:03:27]}
{[%emt 00:00:06]} 20. Qg2 {[%clk 00:01:58]} {[%emt 00:00:20]} Kb8 {[%clk
00:03:22]} {[%emt 00:00:08]} 21. Rd4 {[%clk 00:01:43]} {[%emt 00:00:17]} c6
{[%clk 00:02:57]} {[%emt 00:00:28]} 22. e4 {[%clk 00:01:23]} {[%emt 00:00:23]}
c5 {[%clk 00:02:36]} {[%emt 00:00:24]} 23. Rd2 {[%clk 00:01:13]} {[%emt
00:00:13]} Nc6 {[%clk 00:02:36]} 24. Bc4 {[%clk 00:00:41]} {[%emt 00:00:36]}
Rhe8 {[%clk 00:02:33]} {[%emt 00:00:06]} 25. Kb1 {[%clk 00:00:13]} {[%emt
00:00:31]} Rd7 {[%clk 00:02:24]} {[%emt 00:00:12]} 26. Rhd1 {[%clk 00:00:11]}
{[%emt 00:00:04]} Nxe4 {[%clk 00:02:02]} {[%emt 00:00:25]} 27. Nxe4 {[%clk
00:00:11]} {[%emt 00:00:01]} Qxe4 {[%clk 00:02:02]} {[%emt 00:00:02]} 28. Qf1
{[%clk 00:00:06]} {[%emt 00:00:08]} Qe7 {[%clk 00:01:53]} {[%emt 00:00:12]} 29.
a3 {[%clk 00:00:06]} {[%emt 00:00:03]} Qd8 {[%clk 00:01:47]} {[%emt 00:00:09]}
30. Qg2 {[%clk 00:00:05]} {[%emt 00:00:04]} Re5 {[%clk 00:01:40]} {[%emt
00:00:10]} 31. Bxa6 {[%clk 00:00:05]} {[%emt 00:00:02]} Nd4 {[%clk 00:01:31]}
{[%emt 00:00:11]} 32. Bd3 {[%clk 00:00:05]} {[%emt 00:00:03]} Qc7 {[%clk
00:01:28]} {[%emt 00:00:07]} 33. Qf2 {[%clk 00:00:05]} {[%emt 00:00:02]} Nc6
{[%clk 00:01:24]} {[%emt 00:00:07]} 34. Bb5 {[%clk 00:00:05]} {[%emt 00:00:03]}
f6 {[%clk 00:01:22]} {[%emt 00:00:05]} 35. g4 {[%clk 00:00:05]} {[%emt
00:00:01]} Qb6 {[%clk 00:01:22]} {[%emt 00:00:02]} 36. Bxc6 {[%clk 00:00:05]}
{[%emt 00:00:03]} Qxc6 {[%clk 00:01:22]} {[%emt 00:00:01]} 37. Qg3 {[%clk
00:00:04]} {[%emt 00:00:04]} Qc7 {[%clk 00:01:20]} {[%emt 00:00:05]} 38. Qc3
{[%clk 00:00:04]} {[%emt 00:00:01]} d5 {[%clk 00:01:20]} {[%emt 00:00:02]} 0-1

[Event "15e Open International de Quenza"]
[Site "Quenza"]
[Date "2026.07.05"]
[Round "2.17"]
[White "BASTIANI, Camille"]
[Black "BATSIASHVILI, Nino"]
[Result "0-1"]
[TimeControl "5min+3s"]
[WhiteTitle "-"]
[BlackTitle "GM"]
[WhiteFideId "-"]
[BlackFideId "-"]
[WhiteElo "1755"]
[BlackElo "2306"]

1. d4 {[%clk 00:05:03]} {[%emt 00:00:03]} d5 {[%clk 00:05:03]} 2. Bf4 {[%clk
00:05:03]} Nf6 {[%clk 00:05:00]} {[%emt 00:00:07]} 3. e3 {[%clk 00:05:03]}
{[%emt 00:00:02]} c5 {[%clk 00:04:51]} {[%emt 00:00:11]} 4. c3 {[%clk
00:05:03]} {[%emt 00:00:02]} Nc6 {[%clk 00:04:47]} {[%emt 00:00:07]} 5. Bd3
{[%clk 00:05:03]} {[%emt 00:00:02]} Qb6 {[%clk 00:04:42]} {[%emt 00:00:07]} 6.
Qc2 {[%clk 00:04:34]} {[%emt 00:00:33]} c4 {[%clk 00:04:40]} {[%emt 00:00:05]}
7. Be2 {[%clk 00:04:33]} {[%emt 00:00:03]} g6 {[%clk 00:04:40]} {[%emt
00:00:02]} 8. Nd2 {[%clk 00:04:25]} {[%emt 00:00:11]} Bf5 {[%clk 00:04:40]}
{[%emt 00:00:02]} 9. Qc1 {[%clk 00:04:25]} Bg7 {[%clk 00:04:36]} {[%emt
00:00:07]} 10. Ngf3 {[%clk 00:04:25]} {[%emt 00:00:02]} O-O {[%clk 00:04:23]}
{[%emt 00:00:16]} 11. Nh4 {[%clk 00:04:02]} {[%emt 00:00:27]} Be6 {[%clk
00:04:16]} {[%emt 00:00:10]} 12. b3 {[%clk 00:03:38]} {[%emt 00:00:27]} cxb3
{[%clk 00:04:14]} {[%emt 00:00:05]} 13. axb3 {[%clk 00:03:38]} {[%emt
00:00:02]} Rfc8 {[%clk 00:04:14]} {[%emt 00:00:01]} 14. Nhf3 {[%clk 00:03:21]}
{[%emt 00:00:19]} Nh5 {[%clk 00:04:12]} {[%emt 00:00:05]} 15. Bg3 {[%clk
00:03:20]} {[%emt 00:00:05]} Nxg3 {[%clk 00:03:58]} {[%emt 00:00:18]} 16. hxg3
{[%clk 00:03:20]} {[%emt 00:00:01]} Qc7 {[%clk 00:03:57]} {[%emt 00:00:04]} 17.
Ng5 {[%clk 00:03:04]} {[%emt 00:00:19]} Nd8 {[%clk 00:03:47]} {[%emt 00:00:13]}
18. c4 {[%clk 00:02:01]} {[%emt 00:01:06]} dxc4 {[%clk 00:03:40]} {[%emt
00:00:09]} 19. bxc4 {[%clk 00:02:01]} {[%emt 00:00:02]} h6 {[%clk 00:03:40]}
{[%emt 00:00:03]} 20. Nxe6 {[%clk 00:01:49]} {[%emt 00:00:15]} Nxe6 {[%clk
00:03:40]} {[%emt 00:00:01]} 21. O-O {[%clk 00:01:35]} {[%emt 00:00:17]} a5
{[%clk 00:03:40]} {[%emt 00:00:01]} 22. Qb2 {[%clk 00:01:31]} {[%emt 00:00:08]}
h5 {[%clk 00:03:31]} {[%emt 00:00:12]} 23. Rfb1 {[%clk 00:01:29]} {[%emt
00:00:04]} Ra7 {[%clk 00:03:31]} {[%emt 00:00:03]} 24. Qb6 {[%clk 00:01:13]}
{[%emt 00:00:18]} Qxb6 {[%clk 00:03:29]} {[%emt 00:00:06]} 25. Rxb6 {[%clk
00:01:13]} Nxd4 {[%clk 00:03:22]} {[%emt 00:00:10]} 26. exd4 {[%clk 00:00:51]}
{[%emt 00:00:25]} Bxd4 {[%clk 00:03:22]} 27. Rab1 {[%clk 00:00:43]} {[%emt
00:00:11]} Bxb6 {[%clk 00:03:22]} {[%emt 00:00:02]} 28. Rxb6 {[%clk 00:00:43]}
a4 {[%clk 00:03:22]} {[%emt 00:00:02]} 29. Ne4 {[%clk 00:00:28]} {[%emt
00:00:17]} a3 {[%clk 00:03:21]} {[%emt 00:00:05]} 30. Rb1 {[%clk 00:00:27]}
{[%emt 00:00:03]} a2 {[%clk 00:03:10]} {[%emt 00:00:14]} 31. Ra1 {[%clk
00:00:27]} Ra3 {[%clk 00:03:10]} {[%emt 00:00:02]} 32. Nd2 {[%clk 00:00:14]}
{[%emt 00:00:16]} Rca8 {[%clk 00:02:54]} {[%emt 00:00:19]} 33. c5 {[%clk
00:00:14]} {[%emt 00:00:03]} Rc3 {[%clk 00:02:54]} {[%emt 00:00:02]} 34. Bc4
{[%clk 00:00:07]} {[%emt 00:00:10]} Rc2 {[%clk 00:02:54]} {[%emt 00:00:03]} 0-1

[Event "15e Open International de Quenza"]
[Site "Quenza"]
[Date "2026.07.05"]
[Round "2.4"]
[White "MAURIZZI, Marc Andria"]
[Black "HAVE, Didier"]
[Result "1-0"]
[TimeControl "5min+3s"]
[WhiteTitle "GM"]
[BlackTitle "-"]
[WhiteFideId "-"]
[BlackFideId "-"]
[WhiteElo "2556"]
[BlackElo "1965"]

1. e4 {[%clk 00:05:03]} {[%emt 00:00:02]} d6 {[%clk 00:05:03]} {[%emt
00:00:01]} 2. Nc3 {[%clk 00:05:03]} {[%emt 00:00:02]} Nf6 {[%clk 00:05:03]}
{[%emt 00:00:02]} 3. d4 {[%clk 00:05:03]} {[%emt 00:00:01]} Nbd7 {[%clk
00:05:03]} {[%emt 00:00:02]} 4. g4 {[%clk 00:05:03]} {[%emt 00:00:02]} h6
{[%clk 00:05:03]} {[%emt 00:00:02]} 5. h3 {[%clk 00:05:01]} {[%emt 00:00:04]}
e5 {[%clk 00:04:54]} {[%emt 00:00:13]} 6. Nge2 {[%clk 00:05:01]} {[%emt
00:00:02]} Be7 {[%clk 00:04:49]} {[%emt 00:00:09]} 7. Bg2 {[%clk 00:04:58]}
{[%emt 00:00:06]} c6 {[%clk 00:04:40]} {[%emt 00:00:12]} 8. a3 {[%clk
00:04:52]} {[%emt 00:00:09]} Qc7 {[%clk 00:04:40]} {[%emt 00:00:03]} 9. Be3
{[%clk 00:04:52]} {[%emt 00:00:01]} b6 {[%clk 00:04:05]} {[%emt 00:00:38]} 10.
Ng3 {[%clk 00:04:50]} {[%emt 00:00:05]} g6 {[%clk 00:04:03]} {[%emt 00:00:06]}
11. O-O {[%clk 00:04:47]} {[%emt 00:00:04]} Bb7 {[%clk 00:03:47]} {[%emt
00:00:20]} 12. f4 {[%clk 00:04:47]} {[%emt 00:00:02]} O-O-O {[%clk 00:03:35]}
{[%emt 00:00:15]} 13. a4 {[%clk 00:04:39]} {[%emt 00:00:11]} Kb8 {[%clk
00:03:35]} {[%emt 00:00:03]} 14. a5 {[%clk 00:04:39]} {[%emt 00:00:01]} h5
{[%clk 00:03:10]} {[%emt 00:00:28]} 15. g5 {[%clk 00:04:35]} {[%emt 00:00:07]}
Ne8 {[%clk 00:02:51]} {[%emt 00:00:22]} 16. fxe5 {[%clk 00:04:28]} {[%emt
00:00:10]} dxe5 {[%clk 00:02:51]} {[%emt 00:00:03]} 17. d5 {[%clk 00:04:28]}
{[%emt 00:00:01]} Nd6 {[%clk 00:02:41]} {[%emt 00:00:13]} 18. axb6 {[%clk
00:04:28]} {[%emt 00:00:03]} axb6 {[%clk 00:02:38]} {[%emt 00:00:06]} 19. dxc6
{[%clk 00:04:24]} {[%emt 00:00:07]} Bxc6 {[%clk 00:02:35]} {[%emt 00:00:06]} 20.
Nd5 {[%clk 00:04:24]} {[%emt 00:00:01]} Bxd5 {[%clk 00:02:34]} {[%emt
00:00:04]} 21. Qxd5 {[%clk 00:04:24]} {[%emt 00:00:02]} Qb7 {[%clk 00:02:27]}
{[%emt 00:00:10]} 22. h4 {[%clk 00:04:16]} {[%emt 00:00:11]} Qxd5 {[%clk
00:02:08]} {[%emt 00:00:23]} 23. exd5 {[%clk 00:04:16]} {[%emt 00:00:01]} Nc4
{[%clk 00:02:00]} {[%emt 00:00:11]} 24. Rxf7 {[%clk 00:04:16]} Nxe3 {[%clk
00:01:50]} {[%emt 00:00:13]} 25. Rxe7 {[%clk 00:04:16]} {[%emt 00:00:01]} Nxc2
{[%clk 00:01:38]} {[%emt 00:00:15]} 26. Rc1 {[%clk 00:04:10]} {[%emt 00:00:08]}
Nd4 {[%clk 00:01:30]} {[%emt 00:00:12]} 27. d6 {[%clk 00:04:07]} {[%emt
00:00:05]} Nc5 {[%clk 00:01:25]} {[%emt 00:00:09]} 28. b4 {[%clk 00:04:02]}
{[%emt 00:00:09]} Na6 {[%clk 00:01:04]} {[%emt 00:00:24]} 29. Rb7+ {[%clk
00:03:59]} {[%emt 00:00:05]} Ka8 {[%clk 00:01:00]} {[%emt 00:00:08]} 30. Rxb6+
{[%clk 00:03:59]} {[%emt 00:00:02]} Ka7 {[%clk 00:00:59]} {[%emt 00:00:04]} 31.
Rb7+ {[%clk 00:03:59]} Ka8 {[%clk 00:00:59]} {[%emt 00:00:01]} 32. Ra1 {[%clk
00:03:59]} Rxd6 {[%clk 00:00:47]} {[%emt 00:00:15]} 33. Rb6+ {[%clk 00:03:59]}
{[%emt 00:00:02]} 1-0

[Event "15e Open International de Quenza"]
[Site "Quenza"]
[Date "2026.07.05"]
[Round "2.5"]
[White "LAGUNES, Matthieu"]
[Black "FEDORCHUK, Sergey A."]
[Result "0-1"]
[TimeControl "5min+3s"]
[WhiteTitle "-"]
[BlackTitle "GM"]
[WhiteFideId "-"]
[BlackFideId "-"]
[WhiteElo "1917"]
[BlackElo "2530"]

1. e4 {[%clk 00:05:03]} {[%emt 00:00:02]} c5 {[%clk 00:05:03]} {[%emt
00:00:02]} 2. Nf3 {[%clk 00:05:01]} {[%emt 00:00:05]} e6 {[%clk 00:05:03]}
{[%emt 00:00:02]} 3. c3 {[%clk 00:05:01]} {[%emt 00:00:03]} d5 {[%clk
00:05:03]} {[%emt 00:00:03]} 4. exd5 {[%clk 00:05:01]} {[%emt 00:00:03]} Qxd5
{[%clk 00:05:03]} {[%emt 00:00:02]} 5. d4 {[%clk 00:04:54]} {[%emt 00:00:10]}
Nf6 {[%clk 00:05:03]} {[%emt 00:00:02]} 6. Be3 {[%clk 00:04:49]} {[%emt
00:00:08]} cxd4 {[%clk 00:04:45]} {[%emt 00:00:22]} 7. Qxd4 {[%clk 00:04:49]}
{[%emt 00:00:03]} Nc6 {[%clk 00:04:42]} {[%emt 00:00:06]} 8. Qxd5 {[%clk
00:04:28]} {[%emt 00:00:24]} Nxd5 {[%clk 00:04:42]} {[%emt 00:00:02]} 9. Bd2
{[%clk 00:04:28]} {[%emt 00:00:01]} e5 {[%clk 00:04:29]} {[%emt 00:00:16]} 10.
g3 {[%clk 00:04:28]} {[%emt 00:00:03]} f6 {[%clk 00:04:16]} {[%emt 00:00:16]}
11. Bg2 {[%clk 00:04:27]} {[%emt 00:00:03]} Be6 {[%clk 00:04:16]} {[%emt
00:00:03]} 12. O-O {[%clk 00:04:22]} {[%emt 00:00:08]} Kf7 {[%clk 00:04:10]}
{[%emt 00:00:09]} 13. h4 {[%clk 00:04:20]} {[%emt 00:00:05]} Be7 {[%clk
00:04:02]} {[%emt 00:00:11]} 14. a4 {[%clk 00:04:12]} {[%emt 00:00:11]} Na5
{[%clk 00:03:52]} {[%emt 00:00:13]} 15. b4 {[%clk 00:03:48]} {[%emt 00:00:27]}
Nb3 {[%clk 00:03:52]} {[%emt 00:00:01]} 16. Ra3 {[%clk 00:03:48]} {[%emt
00:00:01]} Nxd2 {[%clk 00:03:49]} {[%emt 00:00:06]} 17. Nbxd2 {[%clk 00:03:48]}
{[%emt 00:00:02]} a5 {[%clk 00:03:47]} {[%emt 00:00:05]} 18. Rb1 {[%clk
00:03:46]} {[%emt 00:00:05]} axb4 {[%clk 00:03:39]} {[%emt 00:00:11]} 19. cxb4
{[%clk 00:03:46]} {[%emt 00:00:01]} Nxb4 {[%clk 00:03:39]} {[%emt 00:00:02]} 20.
a5 {[%clk 00:03:17]} {[%emt 00:00:32]} Ra7 {[%clk 00:03:31]} {[%emt 00:00:10]}
21. Ra4 {[%clk 00:03:08]} {[%emt 00:00:12]} Nc6 {[%clk 00:03:29]} {[%emt
00:00:05]} 22. Ne1 {[%clk 00:02:58]} {[%emt 00:00:12]} Nxa5 {[%clk 00:03:15]}
{[%emt 00:00:17]} 23. Ne4 {[%clk 00:02:25]} {[%emt 00:00:36]} Rd8 {[%clk
00:02:56]} {[%emt 00:00:22]} 24. Rb6 {[%clk 00:02:25]} {[%emt 00:00:02]} Rd1
{[%clk 00:02:46]} {[%emt 00:00:12]} 25. Kf1 {[%clk 00:02:04]} {[%emt 00:00:24]}
Bc4+ {[%clk 00:02:46]} {[%emt 00:00:02]} 26. Rxc4 {[%clk 00:02:04]} {[%emt
00:00:02]} Nxc4 {[%clk 00:02:46]} {[%emt 00:00:02]} 27. Rb3 {[%clk 00:01:58]}
{[%emt 00:00:09]} Raa1 {[%clk 00:02:46]} {[%emt 00:00:03]} 0-1

[Event "15e Open International de Quenza"]
[Site "Quenza"]
[Date "2026.07.05"]
[Round "2.12"]
[White "KOSTENIUK, Alexandra"]
[Black "GERONIMI, Paul-Antoine"]
[Result "1-0"]
[TimeControl "5min+3s"]
[WhiteTitle "GM"]
[BlackTitle "-"]
[WhiteFideId "-"]
[BlackFideId "-"]
[WhiteElo "2392"]
[BlackElo "1844"]

1. e4 {[%clk 00:05:03]} {[%emt 00:01:19]} c5 {[%clk 00:05:03]} {[%emt
00:00:03]} 2. d4 {[%clk 00:05:03]} e6 {[%clk 00:05:03]} 3. Nc3 {[%clk
00:05:03]} {[%emt 00:00:03]} cxd4 {[%clk 00:04:56]} {[%emt 00:00:10]} 4. Qxd4
{[%clk 00:05:03]} {[%emt 00:00:01]} Nc6 {[%clk 00:04:56]} {[%emt 00:00:04]} 5.
Qd3 {[%clk 00:05:03]} {[%emt 00:00:01]} a6 {[%clk 00:04:43]} {[%emt 00:00:15]}
6. Bf4 {[%clk 00:04:50]} {[%emt 00:00:16]} Nb4 {[%clk 00:03:43]} {[%emt
00:01:04]} 7. Qd2 {[%clk 00:04:50]} {[%emt 00:00:02]} Nf6 {[%clk 00:03:15]}
{[%emt 00:00:31]} 8. a3 {[%clk 00:04:24]} {[%emt 00:00:30]} Qa5 {[%clk
00:03:01]} {[%emt 00:00:16]} 9. O-O-O {[%clk 00:03:10]} {[%emt 00:01:16]} Nc6
{[%clk 00:02:15]} {[%emt 00:00:49]} 10. Bd6 {[%clk 00:02:34]} {[%emt 00:00:39]}
Bxd6 {[%clk 00:01:41]} {[%emt 00:00:37]} 11. Qxd6 {[%clk 00:02:34]} {[%emt
00:00:02]} Qg5+ {[%clk 00:01:41]} 12. f4 {[%clk 00:02:26]} {[%emt 00:00:11]}
Qg6 {[%clk 00:00:58]} {[%emt 00:00:46]} 13. Re1 {[%clk 00:02:17]} {[%emt
00:00:13]} Ne7 {[%clk 00:00:43]} {[%emt 00:00:18]} 14. Nf3 {[%clk 00:02:13]}
{[%emt 00:00:07]} b5 {[%clk 00:00:28]} {[%emt 00:00:18]} 15. Rg1 {[%clk
00:01:59]} {[%emt 00:00:17]} Bb7 {[%clk 00:00:26]} {[%emt 00:00:05]} 16. Bd3
{[%clk 00:01:59]} Qh5 {[%clk 00:00:11]} {[%emt 00:00:18]} 17. f5 {[%clk
00:01:28]} {[%emt 00:00:34]} Rc8 {[%clk 00:00:09]} {[%emt 00:00:05]} 18. Kb1
{[%clk 00:01:05]} {[%emt 00:00:27]} Rc6 {[%clk 00:00:09]} {[%emt 00:00:02]} 19.
Qb8+ {[%clk 00:01:04]} {[%emt 00:00:03]} Bc8 {[%clk 00:00:09]} {[%emt
00:00:02]} 20. Ne5 {[%clk 00:01:02]} {[%emt 00:00:05]} Rc5 {[%clk 00:00:06]}
{[%emt 00:00:06]} 21. Qd6 {[%clk 00:01:02]} {[%emt 00:00:01]} Rxe5 {[%clk
00:00:06]} {[%emt 00:00:04]} 22. Qxe5 {[%clk 00:01:02]} {[%emt 00:00:01]} O-O
{[%clk 00:00:06]} {[%emt 00:00:03]} 23. g4 {[%clk 00:01:02]} {[%emt 00:00:02]}
Qh3 {[%clk 00:00:06]} {[%emt 00:00:02]} 24. g5 {[%clk 00:00:59]} {[%emt
00:00:06]} Nh5 {[%clk 00:00:06]} {[%emt 00:00:01]} 25. Qd6 {[%clk 00:00:54]}
{[%emt 00:00:09]} 1-0

[Event "15e Open International de Quenza"]
[Site "Quenza"]
[Date "2026.07.05"]
[Round "2.8"]
[White "PAKLEZA, Zbigniew"]
[Black "LE ROY, Tristan"]
[Result "1-0"]
[TimeControl "5min+3s"]
[WhiteTitle "GM"]
[BlackTitle "-"]
[WhiteFideId "-"]
[BlackFideId "-"]
[WhiteElo "2453"]
[BlackElo "1915"]

1. d4 {[%clk 00:05:03]} {[%emt 00:04:05]} Nf6 {[%clk 00:05:03]} {[%emt
00:00:02]} 2. Nf3 {[%clk 00:05:03]} e6 {[%clk 00:05:03]} {[%emt 00:00:04]} 3.
Bf4 {[%clk 00:05:03]} {[%emt 00:00:01]} d5 {[%clk 00:04:58]} {[%emt 00:00:09]}
4. e3 {[%clk 00:05:03]} {[%emt 00:00:01]} Bd6 {[%clk 00:04:58]} 5. Bg3 {[%clk
00:05:03]} {[%emt 00:00:01]} c5 {[%clk 00:04:58]} {[%emt 00:00:01]} 6. Nbd2
{[%clk 00:05:03]} {[%emt 00:00:02]} Qc7 {[%clk 00:04:58]} {[%emt 00:00:02]} 7.
Be2 {[%clk 00:05:03]} {[%emt 00:00:02]} O-O {[%clk 00:04:57]} {[%emt 00:00:04]}
8. O-O {[%clk 00:05:01]} {[%emt 00:00:06]} Nbd7 {[%clk 00:04:57]} {[%emt
00:00:02]} 9. c4 {[%clk 00:05:01]} {[%emt 00:00:01]} e5 {[%clk 00:04:12]}
{[%emt 00:00:47]} 10. dxe5 {[%clk 00:04:54]} {[%emt 00:00:10]} Nxe5 {[%clk
00:04:12]} {[%emt 00:00:01]} 11. cxd5 {[%clk 00:04:54]} {[%emt 00:00:02]} Nxd5
{[%clk 00:03:45]} {[%emt 00:00:30]} 12. Bxe5 {[%clk 00:04:52]} {[%emt
00:00:05]} Bxe5 {[%clk 00:03:44]} {[%emt 00:00:04]} 13. Nc4 {[%clk 00:04:52]}
Rd8 {[%clk 00:03:18]} {[%emt 00:00:29]} 14. Ncxe5 {[%clk 00:04:31]} {[%emt
00:00:24]} Nxe3 {[%clk 00:03:16]} {[%emt 00:00:05]} 15. Qb3 {[%clk 00:04:01]}
{[%emt 00:00:32]} Nxf1 {[%clk 00:03:13]} {[%emt 00:00:06]} 16. Rxf1 {[%clk
00:03:52]} {[%emt 00:00:13]} Be6 {[%clk 00:03:13]} 17. Bc4 {[%clk 00:03:52]}
{[%emt 00:00:02]} Bxc4 {[%clk 00:03:05]} {[%emt 00:00:12]} 18. Qxc4 {[%clk
00:03:52]} {[%emt 00:00:01]} h6 {[%clk 00:02:25]} {[%emt 00:00:42]} 19. h4
{[%clk 00:03:50]} {[%emt 00:00:04]} a6 {[%clk 00:02:24]} {[%emt 00:00:05]} 20.
a4 {[%clk 00:03:32]} {[%emt 00:00:21]} Rab8 {[%clk 00:02:16]} {[%emt 00:00:10]}
21. Rc1 {[%clk 00:03:32]} {[%emt 00:00:03]} b5 {[%clk 00:02:16]} {[%emt
00:00:02]} 22. axb5 {[%clk 00:03:00]} {[%emt 00:00:36]} axb5 {[%clk 00:02:11]}
{[%emt 00:00:08]} 23. Qe4 {[%clk 00:02:49]} {[%emt 00:00:14]} Rb6 {[%clk
00:01:43]} {[%emt 00:00:32]} 24. g3 {[%clk 00:02:03]} {[%emt 00:00:49]} Rbd6
{[%clk 00:01:23]} {[%emt 00:00:22]} 25. Kg2 {[%clk 00:01:58]} {[%emt 00:00:08]}
c4 {[%clk 00:01:20]} {[%emt 00:00:07]} 26. b3 {[%clk 00:01:52]} {[%emt
00:00:09]} c3 {[%clk 00:01:20]} {[%emt 00:00:02]} 27. b4 {[%clk 00:01:42]}
{[%emt 00:00:13]} Rd1 {[%clk 00:00:55]} {[%emt 00:00:27]} 28. Rc2 {[%clk
00:01:42]} {[%emt 00:00:01]} Qe7 {[%clk 00:00:22]} {[%emt 00:00:36]} 29. Qf4
{[%clk 00:01:25]} {[%emt 00:00:20]} Rc8 {[%clk 00:00:16]} {[%emt 00:00:09]} 30.
h5 {[%clk 00:01:03]} {[%emt 00:00:25]} Rb1 {[%clk 00:00:16]} {[%emt 00:00:02]}
31. Qf5 {[%clk 00:00:49]} {[%emt 00:00:17]} Rc7 {[%clk 00:00:08]} {[%emt
00:00:11]} 32. Rxc3 {[%clk 00:00:46]} {[%emt 00:00:06]} Rxb4 {[%emt 00:00:08]}
33. Re3 {[%clk 00:00:36]} {[%emt 00:00:12]} Qe6 {[%clk 00:00:04]} {[%emt
00:00:03]} 34. Qd3 {[%clk 00:00:31]} {[%emt 00:00:07]} Rc8 {[%clk 00:00:04]}
{[%emt 00:00:02]} 35. Qe2 {[%clk 00:00:23]} {[%emt 00:00:12]} Rb1 {[%clk
00:00:04]} {[%emt 00:00:03]} 36. Nd4 {[%clk 00:00:17]} {[%emt 00:00:09]} Qd5+
{[%clk 00:00:04]} {[%emt 00:00:02]} 37. Nef3 {[%clk 00:00:17]} b4 {[%clk
00:00:04]} {[%emt 00:00:03]} 38. Re5 {[%clk 00:00:16]} {[%emt 00:00:03]} Qc4
{[%clk 00:00:04]} {[%emt 00:00:03]} 39. Re8+ {[%clk 00:00:16]} {[%emt
00:00:02]} Kh7 {[%clk 00:00:04]} {[%emt 00:00:02]} 40. Qe4+ {[%clk 00:00:16]}
{[%emt 00:00:01]} g6 {[%clk 00:00:04]} {[%emt 00:00:03]} 41. hxg6+ {[%clk
00:00:16]} {[%emt 00:00:02]} fxg6 {[%clk 00:00:04]} {[%emt 00:00:02]} 42. Qe7+
{[%clk 00:00:16]} {[%emt 00:00:01]} 1-0